bitfinex-derivatives/quotes_SOLF0:USTF0_20250905
["timestamp","ask_amount","ask_price","bid_price","bid_amount"]
[1757079931692,0.03098044,209.05,209.0,66.9671]
[1757079931891,0.03098044,209.05,208.98,66.9737]
[1757079932093,0.03098044,209.05,208.99,66.9707]
[1757079932283,0.03098044,209.05,209.02,4.3045]
[1757079932491,8.87465244,209.14,209.03,7.59]
[1757079932896,0.03,209.13,208.97,7.59]
[1757079933097,0.03,209.13,209.0,7.59]
[1757079933495,0.03,209.13,209.03,7.59]
[1757079933696,8.87465244,209.14,209.03,7.59]
[1757079934197,307.9,209.17,209.03,7.59]
[1757079934991,0.03,209.13,209.03,7.59]
[1757079935296,0.03,209.13,208.98,4.3053]
[1757079935691,8.87465244,209.1,208.96,7.59]
[1757079935889,0.03,209.09,208.97,4.3056]
[1757079936392,8.87465244,209.1,208.99,7.59]
[1757079936596,8.87465244,209.13,208.99,7.59]
[1757079937190,0.03,209.12,208.99,7.59]
[1757079937390,8.87465244,209.09,208.99,7.59]
[1757079938194,8.87465244,209.09,208.94,4.3061]
[1757079938398,8.87465244,209.05,208.94,7.59]
[1757079938695,0.03,209.04,208.94,7.59]
[1757079939392,0.03,209.04,208.95,4.3061]
[1757079939596,8.87465244,209.08,208.94,7.59]
[1757079940202,8.87465244,209.08,208.97,4.3054]
[1757079940391,8.87465244,209.08,208.98,7.59]
[1757079940593,0.03,209.1,208.98,7.59]
[1757079940792,0.03,209.1,209.0,4.3048]
[1757079940997,8.87465244,209.14,208.99,66.9709]
[1757079941197,8.87465244,209.14,209.0,7.59]
[1757079941392,8.87465244,209.14,209.0,11.895]
[1757079941599,0.03,209.13,209.0,7.59]
[1757079942099,8.87465244,209.1,209.0,7.59]
[1757079942601,0.03,209.13,209.0,7.59]
[1757079943902,8.87465244,209.1,209.0,7.59]
[1757079944202,8.90465244,209.13,209.0,7.59]
[1757079944402,307.9,209.17,209.03,7.59]
[1757079945001,8.90465244,209.14,209.03,7.59]
[1757079945804,307.9,209.17,209.03,7.59]
[1757079946104,8.87465244,209.15,209.03,7.59]
[1757079947404,8.87465244,209.11,209.0,4.305]
[1757079947904,8.87465244,209.11,208.98,7.59]
[1757079949303,8.90465244,209.14,208.99,66.9746]
[1757079949607,307.9,209.17,209.03,7.64]
[1757079949807,307.9,209.17,209.06,4.3039]
[1757079950200,0.04,209.2,209.06,7.64]
[1757079950400,0.04,209.2,209.1,11.9432]
[1757079950598,0.04,209.2,209.1,7.64]
[1757079951403,8.87465244,209.18,209.04,7.64]
[1757079951605,105.76,209.23,209.04,7.64]
[1757079951606,5.59349583,209.16,209.05,4.3042]
[1757079952006,5.55349583,209.12,209.04,7.64]
[1757079952202,5.55349583,209.13,209.04,7.64]
[1757079953407,5.55349583,209.13,209.04,11.9443]
[1757079954010,5.55349583,209.13,209.04,7.64]
[1757079954613,5.55349583,209.05,208.97,7.64]
[1757079955107,5.55349583,209.01,208.91,4.3071]
[1757079955307,5.55349583,208.97,208.88,7.64]
[1757079955508,5.55349583,208.93,208.88,7.64]
[1757079955714,5.55349583,208.93,208.83,67.0248]
[1757079956009,5.55349583,208.93,208.84,7.64]
[1757079956409,0.04,209.0,208.85,67.0188]
[1757079956715,5.55349583,208.98,208.87,4.3079]
[1757079957011,5.55349583,208.98,208.85,7.64]
[1757079957310,0.04,209.0,208.87,67.0131]
[1757079957502,5.55349583,209.0,208.88,7.64]
[1757079957707,5.59349583,209.04,208.91,7.64]
[1757079958006,5.59349583,209.04,208.92,4.3069]
[1757079958213,0.04,208.99,208.85,7.64]
[1757079958908,5.55349583,209.0,208.87,7.64]
[1757079959112,0.04,209.04,208.87,7.64]
[1757079959312,5.55349583,209.02,208.87,7.64]
[1757079960012,20.22,209.04,208.88,67.0098]
[1757079960208,5.55349583,209.02,208.89,7.64]
[1757079960415,5.55349583,209.07,208.92,66.9962]
[1757079960608,5.55349583,209.07,208.97,11.9457]
[1757079960807,5.55349583,209.07,208.97,7.64]
[1757079961315,5.55349583,209.07,208.88,67.0095]
[1757079961517,0.04,209.06,208.89,7.64]
[1757079961905,0.04,209.06,208.94,4.3065]
[1757079962112,5.55349583,209.1,208.96,7.64]
[1757079962312,0.04,209.11,208.98,7.64]
[1757079962812,0.04,209.11,209.01,4.3051]
[1757079963111,308.14,209.12,209.0,7.64]
[1757079963506,308.14,209.12,208.97,66.9766]
[1757079963507,308.14,209.12,209.01,66.9635]
[1757079963716,5.28220155,209.15,209.06,7.64]
[1757079964318,5.55349583,209.11,209.0,7.64]
[1757079965216,5.59349583,209.11,209.0,7.64]
[1757079965417,5.55349583,209.07,209.0,7.64]
[1757079965713,5.55349583,209.03,208.91,7.64]
[1757079965917,0.04,209.07,208.91,7.64]
[1757079965918,5.55349583,209.04,208.91,7.64]
[1757079966113,5.55349583,209.04,208.95,7.64]
[1757079966322,0.04,209.07,208.95,7.64]
[1757079966523,0.04,209.07,208.92,72.54909583]
[1757079966524,5.59349583,209.12,208.97,7.64]
[1757079966722,5.59349583,209.12,209.01,4.305]
[1757079967221,5.59349583,209.12,208.97,7.64]
[1757079968019,13.13349583,209.12,208.97,11.9457]
[1757079968217,13.13349583,209.12,208.98,7.64]
[1757079968419,0.04,209.12,208.99,7.64]
[1757079968724,5.55349583,209.14,209.02,66.9641]
[1757079968919,5.55349583,209.14,209.01,7.64]
[1757079969117,0.04,209.13,209.01,7.64]
[1757079969817,0.04,209.13,209.01,11.9449]
[1757079970017,0.04,209.13,209.01,7.64]
[1757079970621,5.59349583,209.17,209.02,7.64]
[1757079971024,5.59349583,209.17,209.05,4.304]
[1757079971321,5.59349583,209.17,209.02,7.64]
[1757079971517,5.59349583,209.17,209.05,7.64]
[1757079971713,5.55349583,209.17,209.05,7.64]
[1757079971919,5.55349583,209.23,209.09,7.64]
[1757079972116,7.94326353,209.25,209.1,66.9383]
[1757079972326,5.28220155,209.2,209.14,7.64]
[1757079972626,5.28220155,209.2,209.15,4.3021]
[1757079972827,5.28220155,209.2,209.14,7.64]
[1757079973020,5.28220155,209.2,209.17,7.64]
[1757079973323,5.28220155,209.2,209.16,66.9194]
[1757079973520,5.28220155,209.2,209.17,7.64]
[1757079973831,7.90326353,209.24,209.2,66.9068]
[1757079974126,7.90326353,209.24,209.2,7.64]
[1757079974628,7.90326353,209.24,209.14,7.64]
[1757079976232,7.90326353,209.24,209.18,11.9415]
[1757079976527,7.90326353,209.24,209.18,13.19349583]
[1757079976729,7.90326353,209.24,209.21,4.3006]
[1757079976927,5.32,209.34,209.22,7.64]
[1757079977122,5.32,209.34,209.18,7.64]
[1757079977323,5.32,209.34,209.2,4.3009]
[1757079978129,5.32,209.34,209.22,7.64]
[1757079978629,10.87349583,209.34,209.22,7.64]
[1757079979629,10.87349583,209.34,209.24,4.3001]
[1757079979925,5.32,209.34,209.22,7.64]
[1757079980322,10.87349583,209.38,209.26,4.2997]
[1757079980527,10.87349583,209.38,209.22,7.64]
[1757079980830,5.32,209.37,209.22,7.64]
[1757079981033,5.32,209.37,209.25,66.8882]
[1757079981329,313.5,209.4,209.26,7.95]
[1757079981932,313.5,209.4,209.28,4.2993]
[1757079982232,313.5,209.4,209.26,7.95]
[1757079982430,313.5,209.4,209.27,4.2995]
[1757079982732,313.5,209.4,209.26,7.95]
[1757079983026,313.5,209.4,209.28,4.2994]
[1757079983231,313.5,209.4,209.27,66.8833]
[1757079983532,313.5,209.4,209.3,4.299]
[1757079983748,313.5,209.4,209.27,66.8833]
[1757079984031,313.5,209.4,209.31,4.2986]
[1757079984228,5.32,209.4,209.31,4.2986]
[1757079984833,5.32,209.46,209.34,7.95]
[1757079986230,5.55349583,209.44,209.29,7.95]
[1757079986432,5.32,209.43,209.29,7.95]
[1757079987530,5.32,209.39,209.24,7.95]
[1757079988736,5.32,209.38,209.24,7.95]
[1757079989030,5.32,209.38,209.26,4.2995]
[1757079989432,5.32,209.38,209.26,7.95]
[1757079989635,5.55349583,209.42,209.3,4.2988]
[1757079989935,5.55349583,209.42,209.28,7.95]
[1757079989936,5.32,209.41,209.28,7.95]
[1757079991036,5.55349583,209.4,209.25,5.55349583]
[1757079991239,5.32,209.39,209.22,313.49349583]
[1757079991539,5.32,209.39,209.23,7.95]
[1757079991937,5.32,209.39,209.26,4.2995]
[1757079992534,5.32,209.39,209.24,4.3001]
[1757079992734,5.32,209.39,209.23,7.95]
[1757079993137,5.32,209.39,209.24,4.3]
[1757079993332,5.32,209.39,209.23,7.95]
[1757079993840,5.55349583,209.4,209.23,7.95]
[1757079994234,5.32,209.35,209.23,7.95]
[1757079994841,5.32,209.34,209.23,7.95]
[1757079995434,10.87349583,209.34,209.23,7.95]
[1757079995634,5.32,209.33,209.17,7.95]
[1757079996340,5.32,209.33,209.21,7.95]
[1757079996940,10.87349583,209.33,209.21,7.95]
[1757079997236,5.32,209.32,209.16,7.95]
[1757079997439,5.32,209.28,209.16,7.95]
[1757079998335,72.08,209.28,209.16,7.95]
[1757079998540,5.32,209.27,209.16,7.95]
[1757079999240,10.87349583,209.27,209.16,7.95]
[1757079999741,5.32,209.27,209.16,7.95]
[1757080001546,5.55349583,209.24,209.08,307.84]
[1757080001840,5.32,209.23,209.1,7.95]
[1757080003246,5.32,209.19,209.1,7.95]
[1757080003944,5.32,209.19,209.05,11.92215219]
[1757080004140,5.32,209.15,209.05,3.97215219]
[1757080005738,15.64,209.15,209.02,7.95]
[1757080006140,5.32,209.15,209.02,7.95]
[1757080007943,5.32,209.15,209.02,13.50349583]
[1757080008141,5.55349583,209.19,209.06,7.96]
[1757080008342,11.59349583,209.19,209.06,7.96]
[1757080008745,5.55349583,209.19,209.06,7.96]
[1757080008945,22.43349583,209.19,209.06,7.96]
[1757080009549,5.55349583,209.19,209.06,7.96]
[1757080010044,5.32,209.14,208.99,7.96]
[1757080010849,5.55349583,209.11,208.99,7.96]
[1757080011944,5.32,209.1,208.99,7.96]
[1757080012444,5.55349583,209.13,208.99,7.96]
[1757080012944,5.55349583,209.13,209.02,7.96]
[1757080013445,5.32,209.15,209.02,7.96]
[1757080014049,125.42,209.14,209.02,7.96]
[1757080014248,5.32,209.13,208.98,7.96]
[1757080014651,5.32,209.13,208.98,12.2654]
[1757080014855,130.74,209.13,208.98,7.96]
[1757080015049,5.32,209.11,208.98,7.96]
[1757080015252,5.32,209.07,208.97,3.97215219]
[1757080015450,5.32,209.03,208.97,3.97215219]
[1757080015646,8.9266154,209.0,208.97,3.97215219]
[1757080015847,5.32,208.98,208.97,3.97215219]
[1757080016053,5.8,208.98,208.97,3.97215219]
[1757080016253,5.32,208.97,208.94,5.25245818]
[1757080016449,5.32,208.99,208.94,5.25245818]
[1757080016653,8.9266154,209.1,208.91,7.82568007]
[1757080016654,80.2466154,209.01,208.93,3.97702518]
[1757080017050,110.1666154,209.01,208.93,3.97702518]
[1757080017353,124.34,209.0,208.93,3.97702518]
[1757080018357,125.42,209.0,208.93,3.97702518]
[1757080018657,14.2466154,209.01,208.93,3.97702518]
[1757080018860,27.9,209.0,208.93,3.97702518]
[1757080019060,14.2466154,209.01,208.93,3.97702518]
[1757080019262,44.9266154,209.01,208.93,3.97702518]
[1757080019463,59.82,209.0,208.93,3.97702518]
[1757080019659,14.2466154,209.01,208.93,3.97702518]
[1757080019864,30.68,209.0,208.93,3.97702518]
[1757080020360,5.32,209.01,208.93,3.97702518]
[1757080021167,5.32,208.97,208.93,3.97702518]
[1757080021663,8.9266154,208.98,208.93,3.97702518]
[1757080021866,308.2,209.05,208.93,3.97702518]
[1757080021867,5.32,208.96,208.93,3.97702518]
[1757080022465,92.4866154,208.97,208.93,3.97702518]
[1757080022655,5.32,208.96,208.93,3.97702518]
[1757080022860,92.4866154,208.97,208.93,3.97702518]
[1757080023264,5.32,208.96,208.93,3.97702518]
[1757080023670,5.32,208.96,208.84,7.96]
[1757080024362,8.9266154,208.98,208.84,7.96]
[1757080024562,5.32,209.01,208.87,7.96]
[1757080025161,308.2,209.05,208.87,7.96]
[1757080025556,308.2,209.05,208.91,4.3068]
[1757080025766,308.2,209.05,208.92,7.96]
[1757080027169,308.2,209.05,208.92,12.2666]
[1757080027365,14.2466154,209.11,208.94,7.96]
[1757080027763,5.32,209.11,208.96,7.96]
[1757080027959,73.6822388,209.15,209.01,7.96]
[1757080028159,10.60396258,209.21,209.05,7.96]
[1757080028672,5.28396258,209.21,209.07,7.96]
[1757080028871,5.32,209.22,209.07,7.96]
[1757080029070,8.9266154,209.2,209.07,7.96]
[1757080029769,5.32,209.22,209.09,7.96]
[1757080030272,75.4466154,209.26,209.11,7.96]
[1757080030473,5.32,209.27,209.13,7.96]
[1757080030674,313.56396258,209.31,209.15,7.96]
[1757080031068,4.2993,209.29,209.18,4.3014]
[1757080031276,5.28396258,209.31,209.19,7.96]
[1757080032180,5.28396258,209.31,209.21,7.96]
[1757080032473,66.8776,209.29,209.21,7.96]
[1757080032880,66.8804,209.28,209.16,7.96]
[1757080033374,4.2999,209.26,209.16,7.96]
[1757080033572,66.8897,209.25,209.16,7.96]
[1757080034078,66.8931,209.24,209.16,7.96]
[1757080034279,5.32,209.3,209.16,7.96]
[1757080034577,4.2997,209.27,209.16,7.96]
[1757080034778,66.8903,209.25,209.16,7.96]
[1757080035177,4.3006,209.23,209.16,7.96]
[1757080035478,66.8775,209.29,209.16,7.96]
[1757080036376,66.8812,209.28,209.16,7.96]
[1757080036579,66.8874,209.26,209.16,7.96]
[1757080036878,4.3003,209.24,209.16,7.96]
[1757080037375,4.3008,209.22,209.16,7.96]
[1757080037873,66.8996,209.22,209.11,7.96]
[1757080038675,4.3016,209.18,209.11,7.96]
[1757080039981,5.31,209.23,209.11,7.96]
[1757080040280,66.8872,209.26,209.11,7.96]
[1757080040481,5.31,209.28,209.13,66.9275]
[1757080040682,5.31,209.28,209.15,7.32]
[1757080040878,8.9266154,209.34,209.15,7.32]
[1757080041079,5.31,209.33,209.15,7.32]
[1757080041684,5.31,209.33,209.15,11.6219]
[1757080041877,5.31,209.33,209.15,7.32]
[1757080042178,26.9866154,209.34,209.15,7.32]
[1757080042384,5.31,209.33,209.15,7.32]
[1757080042987,5.31,209.29,209.15,7.32]
[1757080044484,5.31,209.29,209.08,7.32]
[1757080044681,5.31,209.25,209.08,7.32]
[1757080044878,27.0666154,209.26,209.08,7.32]
[1757080045074,5.31,209.21,209.08,7.32]
[1757080045274,5.31,209.21,209.05,7.32]
[1757080045476,5.31,209.21,209.08,7.32]
[1757080046283,5.31,209.21,209.09,4.3033]
[1757080046484,5.31,209.21,209.08,7.32]
[1757080046876,20.8366154,209.26,209.08,7.32]
[1757080047279,5.31,209.25,209.08,7.32]
[1757080047781,5.31,209.25,209.1,7.32]
[1757080048181,5.31,209.3,209.16,7.32]
[1757080050284,8.9266154,209.29,209.16,7.32]
[1757080050488,14.21057798,209.36,209.16,7.32]
[1757080050785,5.31,209.35,209.21,7.32]
[1757080051288,5.28396258,209.36,209.25,7.32]
[1757080051477,5.28396258,209.36,209.28,7.32]
[1757080052282,5.31,209.41,209.28,7.32]
[1757080052485,8.9266154,209.41,209.22,122.6071154]
[1757080052788,5.31,209.39,209.23,7.32]
[1757080053091,5.31,209.4,209.23,7.32]
[1757080054581,5.31,209.4,209.25,7.32]
[1757080055184,5.31,209.4,209.25,11.6198]
[1757080055685,5.31,209.4,209.23,7.32]
[1757080055985,313.52396258,209.44,209.27,7.32]
[1757080057086,313.52396258,209.44,209.28,66.8788]
[1757080057291,5.28396258,209.44,209.35,7.32]
[1757080058786,5.31,209.45,209.35,7.32]
[1757080059083,72.98068996,209.47,209.35,7.32]
[1757080059283,5.31,209.5,209.35,7.32]
[1757080059686,5.31,209.5,209.35,11.618]
[1757080059884,5.31,209.5,209.35,7.32]
[1757080060887,60.58,209.53,209.35,7.32]
[1757080061188,14.21057798,209.58,209.34,75.7861154]
[1757080061189,5.28396258,209.58,209.42,8.9266154]
[1757080061385,5.28396258,209.58,209.44,7.32]
[1757080061581,5.28396258,209.58,209.44,132.44]
[1757080061777,5.28396258,209.58,209.44,7.32]
[1757080061978,5.31,209.57,209.44,7.32]
[1757080062382,5.31,209.57,209.39,61.52]
[1757080062586,5.31,209.55,209.36,7.32]
[1757080062785,5.31,209.55,209.39,7.32]
[1757080064392,5.31,209.51,209.39,7.32]
[1757080064589,5.31,209.51,209.34,315.12]
[1757080064794,8.9266154,209.48,209.34,7.32]
[1757080065092,5.31,209.47,209.34,7.32]
[1757080065587,8.9266154,209.44,209.25,5.25245818]
[1757080065788,5.31,209.43,209.26,70.76]
[1757080065989,5.31,209.43,209.27,7.32]
[1757080066391,5.31,209.43,209.3,7.32]
[1757080068094,5.28,209.42,209.3,7.32]
[1757080068696,5.28,209.39,209.25,13.28245818]
[1757080069599,5.28,209.39,209.25,8.03]
[1757080070200,5.28,209.38,209.25,8.03]
[1757080071401,5.28,209.38,209.26,8.03]
[1757080073499,5.28,209.34,209.19,8.03]
[1757080073697,5.54335159,209.3,209.19,8.03]
[1757080073995,10.82335159,209.3,209.19,8.03]
[1757080074393,5.54335159,209.26,209.17,5.25245818]
[1757080074594,5.54335159,209.22,209.17,5.25245818]
[1757080074900,5.28,209.21,209.17,5.25245818]
[1757080075299,5.54335159,209.3,209.17,5.25245818]
[1757080075491,5.54335159,209.27,209.17,5.25245818]
[1757080076696,5.54335159,209.27,209.16,5.25245818]
[1757080077905,5.28,209.29,209.16,5.25245818]
[1757080078095,5.28,209.29,209.17,8.03]
[1757080078294,5.54335159,209.33,209.17,8.03]
[1757080078702,5.54335159,209.33,209.18,5.54335159]
[1757080079605,5.54335159,209.33,209.17,8.03]
[1757080080306,5.28,209.34,209.2,5.54335159]
[1757080080600,307.74,209.36,209.23,4.3004]
[1757080080905,307.74,209.36,209.24,8.03]
[1757080081502,5.54335159,209.39,209.25,4.3]
[1757080081700,15.56,209.44,209.29,8.03]
[1757080082511,5.28,209.44,209.29,8.03]
[1757080083801,10.82335159,209.49,209.3,8.03]
[1757080084210,10.82335159,209.49,209.34,8.03]
[1757080084706,5.28,209.44,209.28,8.03]
[1757080085100,5.28,209.44,209.28,12.3292]
[1757080085400,5.28,209.44,209.27,66.8801]
[1757080085605,5.54335159,209.47,209.31,5.54335159]
[1757080085804,5.54335159,209.47,209.35,8.03]
[1757080086201,5.54335159,209.47,209.36,4.2976]
[1757080086505,5.28,209.49,209.35,5.54335159]
[1757080086707,5.28,209.55,209.36,8.03]
[1757080086905,130.32,209.55,209.36,8.03]
[1757080087099,130.32,209.55,209.4,8.03]
[1757080087296,5.28,209.55,209.4,8.03]
[1757080088304,5.28,209.51,209.4,8.03]
[1757080088706,5.54335159,209.44,209.32,8.03]
[1757080089506,5.28,209.47,209.32,8.03]
[1757080089903,5.28,209.47,209.32,12.3283]
[1757080090104,5.28,209.47,209.32,8.03]
[1757080090305,5.28,209.43,209.32,8.03]
[1757080090506,5.54335159,209.4,209.29,307.78]
[1757080090914,5.28,209.43,209.3,8.03]
[1757080091408,13.64,209.44,209.33,8.03]
[1757080091803,19.18335159,209.44,209.33,8.03]
[1757080092014,5.28,209.43,209.33,8.03]
[1757080094307,5.54335159,209.49,209.33,8.03]
[1757080095213,5.28,209.44,209.29,307.78]
[1757080095512,5.54335159,209.41,209.29,307.78]
[1757080096110,5.28,209.4,209.29,307.78]
[1757080096315,5.54335159,209.37,209.3,3.97228355]
[1757080098910,5.29,209.32,209.27,5.25245818]
[1757080099112,10.83335159,209.33,209.27,5.25245818]
[1757080099310,14.26,209.41,209.27,5.25245818]
[1757080099311,5.29,209.46,209.27,5.25245818]
[1757080099618,5.54335159,209.38,209.27,5.25245818]
[1757080100117,5.54335159,209.38,209.27,13.11245818]
[1757080100414,5.54335159,209.41,209.27,17.41185818]
[1757080100618,5.54335159,209.41,209.27,13.11245818]
[1757080100913,5.54335159,209.41,209.27,18.65580977]
[1757080101118,10.83335159,209.45,209.3,7.86]
[1757080101318,5.29,209.45,209.31,5.54335159]
[1757080101514,5.29,209.45,209.32,4.2984]
[1757080101720,5.29,209.45,209.33,7.86]
[1757080102021,10.83335159,209.45,209.33,7.86]
[1757080102720,5.29,209.45,209.33,7.86]
[1757080102921,432.72,209.47,209.33,7.86]
[1757080104823,432.72,209.47,209.33,12.158]
[1757080105119,432.72,209.47,209.33,7.86]
[1757080105313,307.72,209.47,209.33,7.86]
[1757080105511,10.83335159,209.49,209.35,5.54335159]
[1757080106024,10.83335159,209.49,209.36,7.86]
[1757080107416,5.29,209.49,209.36,7.86]
[1757080107616,5.29,209.58,209.39,5.54335159]
[1757080107822,130.29,209.58,209.4,7.86]
[1757080108021,130.29,209.58,209.43,9.83935159]
[1757080108224,5.29,209.58,209.44,7.86]
[1757080108622,5.29,209.58,209.45,4.2956]
[1757080108822,5.29,209.58,209.46,7.86]
[1757080109924,5.28396258,209.59,209.46,7.86]
[1757080111326,5.28396258,209.59,209.48,7.86]
[1757080112122,5.29,209.58,209.48,7.86]
[1757080114326,5.29,209.63,209.48,7.86]
[1757080114525,10.83335159,209.63,209.48,7.86]
[1757080114924,135.77335159,209.63,209.48,7.86]
[1757080115334,5.29,209.62,209.48,7.86]
[1757080116239,50.49,209.67,209.49,7.86]
[1757080116436,5.29,209.67,209.53,7.86]
[1757080116641,5.28396258,209.72,209.57,7.86]
[1757080116830,5.28396258,209.72,209.6,7.86]
[1757080117031,5.28396258,209.72,209.61,7.86]
[1757080118135,5.54335159,209.7,209.57,7.86]
[1757080118431,5.54335159,209.66,209.48,7.86]
[1757080118636,5.29,209.65,209.48,13.40335159]
[1757080118838,5.29,209.65,209.49,7.86]
[1757080119042,5.29,209.65,209.49,12.1549]
[1757080119234,5.29,209.65,209.49,7.86]
[1757080119733,5.54335159,209.62,209.49,7.86]
[1757080119940,5.29,209.61,209.49,7.86]
[1757080120433,5.54335159,209.67,209.49,7.86]
[1757080120632,5.54335159,209.63,209.49,7.86]
[1757080120832,5.29,209.62,209.49,7.86]
[1757080121030,0.83031113,209.75,209.49,7.86]
[1757080121231,5.54335159,209.66,209.5,4.2947]
[1757080121431,5.29,209.67,209.51,66.8031]
[1757080121631,5.29,209.67,209.53,5.54335159]
[1757080122233,71.75335159,209.72,209.54,7.86]
[1757080122439,10.83335159,209.72,209.54,7.86]
[1757080122639,5.29,209.72,209.57,9.83655159]
[1757080122942,5.29,209.72,209.56,7.86]
[1757080123541,5.29,209.69,209.56,7.86]
[1757080124739,5.54335159,209.67,209.52,61.56]
[1757080124943,5.29,209.66,209.52,61.56]
[1757080125640,5.29,209.66,209.51,7.86]
[1757080127047,5.54335159,209.63,209.51,7.86]
[1757080127444,5.29,209.62,209.46,315.42]
[1757080127745,5.29,209.68,209.48,7.86]
[1757080128046,5.54335159,209.66,209.52,7.86]
[1757080128545,5.54335159,209.66,209.52,12.1541]
[1757080129140,5.3,209.65,209.52,7.86]
[1757080129943,5.3,209.65,209.52,12.1542]
[1757080130147,5.3,209.65,209.52,7.86]
[1757080130348,5.3,209.65,209.47,13.39335159]
[1757080130544,5.3,209.65,209.49,4.2949]
[1757080130747,5.3,209.65,209.5,7.85]
[1757080130943,5.3,209.65,209.51,5.54335159]
[1757080131149,10.84335159,209.71,209.52,7.85]
[1757080131652,10.84335159,209.71,209.56,7.85]
[1757080132749,5.3,209.71,209.57,4.2931]
[1757080133051,313.10335159,209.76,209.56,7.85]
[1757080133251,5.54335159,209.74,209.57,125.12]
[1757080133447,307.56,209.76,209.6,5.54335159]
[1757080133657,307.56,209.76,209.61,7.85]
[1757080134453,5.54335159,209.73,209.61,7.85]
[1757080134854,5.3,209.75,209.61,7.85]
[1757080135056,5.54335159,209.74,209.61,7.85]
[1757080135552,5.3,209.74,209.61,7.85]
[1757080135856,307.56,209.76,209.54,7.85]
[1757080135857,5.3,209.7,209.54,7.85]
[1757080136660,8.87667194,209.67,209.54,7.85]
[1757080136855,5.3,209.66,209.54,7.85]
[1757080137057,5.3,209.66,209.48,88.68]
[1757080137256,5.3,209.66,209.48,92.9751]
[1757080137554,5.3,209.62,209.47,7.85]
[1757080139458,5.3,209.62,209.49,4.2949]
[1757080139850,5.3,209.62,209.47,130.73]
[1757080140356,8.87667194,209.67,209.48,7.85]
[1757080140558,5.3,209.67,209.5,7.85]
[1757080140758,5.3,209.67,209.55,7.85]
[1757080140959,5.3,209.66,209.48,7.85]
[1757080141158,5.3,209.65,209.48,7.85]
[1757080141358,15.04,209.65,209.48,7.85]
[1757080142159,5.3,209.65,209.48,7.85]
[1757080142362,5.3,209.62,209.48,7.85]
[1757080143153,8.87667194,209.63,209.38,321.50913012]
[1757080143465,5.3,209.54,209.39,7.85]
[1757080143648,14.17667194,209.6,209.39,7.85]
[1757080144064,8.87667194,209.6,209.39,7.85]
[1757080144253,5.3,209.55,209.39,133.07]
[1757080144454,5.3,209.55,209.4,7.85]
[1757080145049,5.3,209.55,209.4,133.09]
[1757080145854,5.3,209.55,209.41,7.85]
[1757080146060,14.17667194,209.6,209.41,7.85]
[1757080146563,14.17667194,209.6,209.42,7.85]
[1757080146754,14.17667194,209.6,209.44,7.85]
[1757080146959,5.3,209.6,209.44,7.85]
[1757080147159,5.3,209.6,209.48,7.85]
[1757080147759,5.3,209.65,209.5,4.2946]
[1757080147960,8.87667194,209.61,209.42,60.53]